[Event "8th Menchik Memorial 2024"]
[Site "London"]
[Date "2024.03.26"]
[Round "9.5"]
[White "Smith, Olivia"]
[Black "Sivanandan, Bodhana"]
[Result "1-0"]
[ECO "B12"]
[WhiteElo "2054"]
[BlackElo "2088"]
[Annotator "RC"]
[PlyCount "167"]
[EventDate "2024.03.22"]
[EventType "tourn"]
[EventCountry "ENG"]
[SourceTitle "playchess.com"]
[Source "ChessBase"]
[SourceQuality "1"]
[TimeControl "5400+30"]

1. e4 {[%emt 0:00:03]} c6 {[%emt 0:02:22]} 2. d4 {[%emt 0:00:05]} d5 {[%emt 0:00:29]} 3. e5 {[%emt 0:00:03]} Bf5 {[%emt 0:00:27]} 4. h4 {[%emt 0:00:12]} h5 {[%emt 0:00:30]} 5. Bd3 {[%emt 0:00:07]} Bxd3 {[%emt 0:00:39]} 6. Qxd3 {[%emt 0:00:04]} e6 {[%emt 0:00:48]} 7. Bg5 {[%emt 0:00:40]} Be7 {[%emt 0:01:47]} 8. Nf3 {[%emt 0:00:30]} Nh6 {[%emt 0:01:41]} 9. Nbd2 {[%emt 0:07:43]} Nf5 {[%emt 0:04:22]} 10. Nf1 {[%emt 0:12:42]} Nd7 {[%emt 0:06:37]} 11. Ne3 {[%emt 0:05:01]} Nxe3 {[%emt 0:04:13]} 12. Bxe3 {[%emt 0:03:17]} Qa5+ {[%emt 0:07:25]} 13. c3 {[%emt 0:01:39]} Qb5 {[%emt 0:06:44]} 14. Qc2 {[%emt 0:11:02]} c5 {[%emt 0:04:01]} 15. a4 {[%emt 0:02:38]} Qc6 {[%emt 0:03:00]} 16. O-O {[%emt 0:01:00]} O-O {[%emt 0:08:26]} 17. Bg5 {[%emt 0:01:51]} Bxg5 {[%emt 0:08:36]} 18. Nxg5 {[%emt 0:00:06]} g6 {[%emt 0:00:21]} 19. Qe2 {[%emt 0:02:21]} cxd4 {[%emt 0:05:50]} 20. cxd4 {[%emt 0:00:05]} Rac8 {[%emt 0:01:36]} 21. Ra3 {[%emt 0:08:45]} Qc2 {[%emt 0:05:09]} 22. Qe3 {[%emt 0:06:47]} Nb6 {[%emt 0:05:20]} 23. Nh3 {[%emt 0:09:03]} Kg7 {[%emt 0:01:49]} 24. Qg5 {[%emt 0:01:50]} Nc4 {[%emt 0:07:00]} 25. Qf6+ {[%emt 0:10:35]} Kg8 {[%emt 0:00:58]} 26. Rc3 {[%emt 0:01:12]} Qf5 {[%emt 0:01:13]} 27. Qxf5 {[%emt 0:01:26]} exf5 {[%emt 0:01:03]} 28. Rfc1 {[%emt 0:01:05]} Rcd8 {[%emt 0:12:04]} 29. b3 {[%emt 0:01:45]} Na5 {[%emt 0:00:00]} 30. Nf4 {[%emt 0:02:56]} Nc6 {[%emt 0:00:00]} 31. Rd1 {[%emt 0:00:49]} Rd7 {[%emt 0:00:00]} 32. Kf1 {[%emt 0:04:01]} Rc8 {[%emt 0:00:00]} 33. b4 {[%emt 0:01:57]} Rcd8 {[%emt 0:00:00]} 34. b5 {[%emt 0:00:35]} Na5 {[%emt 0:00:00]} 35. Ke2 {[%emt 0:00:32]} b6 {[%emt 0:00:00]} 36. Rdc1 {[%emt 0:01:17]} Nc4 {[%emt 0:00:00]} 37. Nd3 {[%emt 0:00:24]} Kg7 {[%emt 0:00:00]} 38. R1c2 {[%emt 0:01:23]} f6 {[%emt 0:00:00]} 39. f4 {[%emt 0:00:13]} Re8 {[%emt 0:00:21]} 40. Kf3 {[%emt 0:00:23]} Kf7 {[%emt 0:01:10]} 41. Nb4 {[%emt 0:00:37]} fxe5 {[%emt 0:01:32]} 42. fxe5 {[%emt 0:00:11]} Red8 {[%emt 0:00:29]} 43. Kf4 {[%emt 0:00:47]} Ke6 {[%emt 0:00:40]} 44. Nd3 {[%emt 0:00:36]} Kf7 {[%emt 0:01:16]} 45. Nb2 {[%emt 0:01:11]} Ke6 {[%emt 0:00:54]} 46. Nd3 {[%emt 0:00:57]} Kf7 {[%emt 0:01:01]} 47. Kf3 {[%emt 0:00:31]} Rc7 {[%emt 0:01:13]} 48. Ke2 {[%emt 0:00:31]} Re7 {[%emt 0:00:26]} 49. Kf2 {[%emt 0:00:22]} Red7 {[%emt 0:00:44]} 50. Nf4 {[%emt 0:00:24]} Rb7 {[%emt 0:00:15]} 51. Rg3 {[%emt 0:00:51]} Rg8 {[%emt 0:00:29]} 52. Nxd5 {[%emt 0:00:13]} Rd8 {[%emt 0:00:33]} 53. e6+ {[%emt 0:00:44]} Ke8 {[%emt 0:00:50]} 54. Rxc4 {[%emt 0:00:49]} Rxd5 {[%emt 0:00:22]} 55. Rxg6 {[%emt 0:00:12]} Kf8 {[%emt 0:00:37]} 56. Rc8+ {[%emt 0:00:23]} Ke7 {[%emt 0:00:09]} 57. Rg7+ {[%emt 0:00:17]} Kxe6 {[%emt 0:00:11]} 58. Rxb7 {[%emt 0:00:12]} Rxd4 {[%emt 0:00:10]} 59. Rxa7 {[%emt 0:00:11]} Ke5 {[%emt 0:00:21]} 60. a5 {[%emt 0:00:56]} bxa5 {[%emt 0:00:15]} 61. Rxa5 {[%emt 0:00:08]} Kf4 {[%emt 0:00:13]} 62. b6 {[%emt 0:00:30]} Rd2+ {[%emt 0:00:11]} 63. Kf1 {[%emt 0:00:48]} Rb2 {[%emt 0:00:34]} 64. Rc4+ {[%emt 0:00:26]} Ke3 {[%emt 0:00:12]} 65. Ra3+ {[%emt 0:00:21]} Kd2 {[%emt 0:00:09]} 66. Rc6 {[%emt 0:00:43]} f4 {[%emt 0:00:45]} 67. Kf2 {[%emt 0:01:03]} Rb5 {[%emt 0:00:49]} 68. Kf3 {[%emt 0:00:31]} Rb4 {[%emt 0:00:14]} 69. Ra2+ {[%emt 0:00:30]} Kd3 {[%emt 0:00:24]} 70. Rf6 {[%emt 0:00:35]} Rb1 {[%emt 0:00:36]} 71. Kxf4 {[%emt 0:00:22]} Rb4+ {[%emt 0:00:44]} 72. Kg5 {[%emt 0:00:20]} Rb5+ {[%emt 0:00:05]} 73. Kg6 {[%emt 0:00:12]} Kd4 {[%emt 0:00:26]} 74. Kf7 {[%emt 0:00:16]} Ke4 {[%emt 0:00:36]} 75. Ke7 {[%emt 0:00:21]} Ke5 {[%emt 0:00:31]} 76. Rh6 {[%emt 0:00:12]} Kf4 {[%emt 0:00:12]} 77. Kd7 {[%emt 0:00:14]} Kg4 {[%emt 0:00:13]} 78. Kc7 {[%emt 0:00:20]} Kxh4 {[%emt 0:00:21]} 79. Rc6 {[%emt 0:00:17]} Kg3 {[%emt 0:00:16]} 80. b7 {[%emt 0:00:12]} Rxb7+ {[%emt 0:00:27]} 81. Kxb7 {[%emt 0:00:04]} h4 {[%emt 0:00:21]} 82. Rc3+ {[%emt 0:00:11]} Kh2 {[%emt 0:00:14]} 83. g4+ {[%emt 0:00:12]} Kg1 {[%emt 0:00:07]} 84. Rc1# {[%emt 0:00:04]} 1-0